fUSD/lending_fUSD_20260203
["ID","MTS","AMOUNT","RATE_DAILY","PERIOD"]
[404365591,1770078649267,-500.0,0.00015041,2]
[404365592,1770078649276,-868.9,0.00015068,2]
[404365593,1770078649285,-994.72,0.00015152,2]
[404365594,1770078649294,-284.3,0.00015218,2]
[404365595,1770078649304,-6453.0,0.00015225,2]
[404365596,1770078649313,-1613.0,0.00015256,2]
[404365597,1770078649323,-2129.0,0.00015261,2]
[404365598,1770078649332,-1517.64,0.000153,2]
[404365599,1770078649341,-988.5,0.00015342,2]
[404365600,1770078649351,-1006.52245564,0.00015342,2]
[404365601,1770078649360,-269.29562662,0.00015342,2]
[404365602,1770078649370,-501.43163729,0.00015342,2]
[404365603,1770078649379,-1500.0,0.00015342,2]
[404365604,1770078649389,-365.91722632,0.00015342,2]
[404365605,1770078649398,-501.85428238,0.00015342,2]
[404365606,1770078649408,-2000.0,0.00015342,2]
[404365607,1770078649417,-2000.0,0.00015342,2]
[404365608,1770078649427,-508.63384765,0.000154,2]
[404365609,1770078649436,-994.72,0.00015426,2]
[404365610,1770078649446,-346.92554585,0.00015432,2]
[404365611,1770078649455,-747.8093786,0.00015433,2]
[404365612,1770078649464,-599.60298507,0.00015433,2]
[404365613,1770078649474,-209.40437684,0.00015434,2]
[404365614,1770078649483,-251.11897888,0.00015434,2]
[404365615,1770078649492,-1712.93078312,0.00015434,2]
[404365616,1770078649501,-200.0,0.0001548,2]
[404365617,1770078649511,-500.0,0.0001548,2]
[404365618,1770078649520,-201.39718201,0.00015569,2]
[404365619,1770078649530,-994.72,0.000157,2]
[404365620,1770078649540,-2046.29193704,0.00015807,2]
[404365621,1770078649549,-2500.0,0.0001589,2]
[404365622,1770078649559,-1000.0,0.00015918,2]
[404365623,1770078649568,-500.0,0.00015949,2]
[404365624,1770078649578,-5000.0,0.0001596,2]
[404365625,1770078649589,-301.87,0.00015965,2]
[404365626,1770078649600,-500.0,0.00015973,2]
[404365627,1770078649611,-994.76586456,0.00015974,2]
[404365628,1770078649621,-217.15233878,0.00015982,2]
[404365629,1770078649630,-260.4103811,0.00015982,2]
[404365630,1770078649640,-1776.30922209,0.00015982,2]
[404365631,1770078649650,-163.08,0.00015997,2]
[404365632,1770078649660,-163.08,0.00015997,2]
[404365633,1770078649670,-956.83032625,0.00016,2]
[404365634,1770078649681,-270.91542523,0.00016,2]
[404365635,1770078649691,-5954.33236777,0.00016,2]
[404365636,1770078649702,-237072.44432115,0.00016,4]
[404365637,1770078650504,-500.0,9.473e-05,2]
[404365638,1770078650515,-151.0,0.00012863,2]
[404365639,1770078650528,-256.85,0.00012863,2]
[404365640,1770078650538,-151.0,0.00012863,2]
[404365641,1770078650547,-122.775,0.00016,4]
[404365642,1770078650559,-254.86122762,0.00016,4]
[404365643,1770078650750,-1109.13535276,0.0001,2]
[404365644,1770078650759,-73831.27068756,0.00016,4]
[404365645,1770078650771,-19423.80621757,0.00016,4]
[404365646,1770078650781,-28924.57797993,0.00016,4]
[404365647,1770078650792,-9384.62838452,0.00016,4]
[404365648,1770078650803,-6456.76566377,0.00016,4]
[404365649,1770078650814,-9219.2,0.00016,4]
[404365650,1770078650824,-2833.845,0.00016,4]
[404365651,1770078650835,-359609.60083951,0.00016,4]
[404365652,1770078650891,-5444.60447903,0.00016,4]
[404365653,1770078651066,-218.0,0.00010676,2]
[404365654,1770078651075,-1856.74606667,0.00016,4]
[404365655,1770078651086,-10264.48088164,0.00016,4]
[404365656,1770078651097,-89581.42328802,0.00016,4]
[404365657,1770078651108,-18479.0687602,0.00016,4]
[404365658,1770078651119,-2958.27708629,0.00016,4]
[404365659,1770078651205,-5641.87075315,0.00016,4]
[404365660,1770078651216,-6142.03591646,0.00016,4]
[404365661,1770078651227,-808.00460389,0.00016,4]
[404365662,1770078651242,-5279.31111816,0.00016,4]
[404365663,1770078651253,-5065.50956673,0.00016,4]
[404365664,1770078651264,-508.95678175,0.00016,4]
[404365665,1770078651274,-4653.29464465,0.00016,4]
[404365666,1770078651307,-9185.96227502,0.00016,4]
[404365667,1770078651515,-4199.77125419,0.00016,4]
[404365668,1770078685393,500.0,9.473e-05,2]
[404365669,1770078685475,500.0,9.473e-05,2]
[404365670,1770078685550,500.0,9.473e-05,2]
[404365671,1770078685629,500.0,9.473e-05,2]
[404365672,1770078685701,266.4543731,9.473e-05,2]
[404365673,1770078685767,500.0,9.473e-05,2]
[404365674,1770078685844,500.0,9.473e-05,2]
[404365675,1770078685937,500.0,9.473e-05,2]
[404365676,1770078686020,500.0,9.473e-05,2]
[404365677,1770078686100,500.0,9.473e-05,2]
[404365678,1770078686173,500.0,9.473e-05,2]
[404365679,1770078686251,500.0,9.473e-05,2]
[404365680,1770078686367,500.0,9.473e-05,2]
[404365681,1770078686442,500.0,9.473e-05,2]
[404365682,1770078686525,500.0,9.473e-05,2]
[404365683,1770078686608,500.0,9.473e-05,2]
[404365684,1770078686687,500.0,9.473e-05,2]
[404365685,1770078686760,500.0,9.473e-05,2]
[404365686,1770078686858,500.0,9.473e-05,2]
[404365687,1770078686934,570.97314468,9.473e-05,2]
[404365688,1770078687010,162.58248222,9.473e-05,2]
[404365689,1770078687058,337.41751778,9.473e-05,2]
[404365690,1770078687133,500.0,9.473e-05,2]
[404365691,1770078687201,500.0,9.473e-05,2]
[404365692,1770078687272,500.0,9.473e-05,2]
[404365693,1770078687349,500.0,9.473e-05,2]
[404365694,1770078691955,7662.59248222,9.374e-05,2]
[404365695,1770078691999,10000.01,9.374e-05,2]
[404365696,1770078692044,10000.01,9.374e-05,2]
[404365697,1770078771242,167.39857683,9.373e-05,2]
[404365698,1770078772818,615.52182725,9.373e-05,2]
[404365699,1770078781487,300.0,9.373e-05,2]
[404365700,1770078781840,150.0,9.373e-05,2]
[404365701,1770078782112,191.59084805,9.373e-05,2]
[404365702,1770078782875,300.0,9.373e-05,2]
[404365703,1770078783442,500.0,9.373e-05,2]
[404365704,1770078783600,500.0,9.373e-05,2]
[404365705,1770078783683,500.0,9.373e-05,2]
[404365706,1770078783785,500.0,9.373e-05,2]
[404365707,1770078783867,500.0,9.373e-05,2]
[404365708,1770078783951,500.0,9.373e-05,2]
[404365709,1770078784040,500.0,9.373e-05,2]
[404365710,1770078784186,500.0,9.373e-05,2]
[404365711,1770078784275,500.0,9.373e-05,2]
[404365712,1770078784357,500.0,9.373e-05,2]
[404365713,1770078784476,500.0,9.373e-05,2]
[404365714,1770078784583,500.0,9.373e-05,2]
[404365715,1770078784654,350.11057094,9.373e-05,2]
[404365716,1770078784728,500.0,9.373e-05,2]
[404365717,1770078784836,500.0,9.373e-05,2]
[404365718,1770078784906,500.0,9.373e-05,2]
[404365719,1770078784983,425.38817693,9.373e-05,2]
[404365720,1770078785029,74.61182307,9.373e-05,2]
[404365721,1770078785411,500.0,9.373e-05,2]
[404365722,1770078785473,500.0,9.373e-05,2]
[404365723,1770078785852,500.0,9.373e-05,2]
[404365724,1770078785930,500.0,9.373e-05,2]
[404365725,1770078785989,500.0,9.373e-05,2]
[404365726,1770078786064,500.0,9.373e-05,2]
[404365727,1770078786128,500.0,9.373e-05,2]
[404365728,1770078786182,500.0,9.373e-05,2]
[404365729,1770078786264,500.0,9.373e-05,2]
[404365730,1770078786352,500.0,9.373e-05,2]
[404365731,1770078786443,500.0,9.373e-05,2]
[404365732,1770078786522,151.0,9.371e-05,2]
[404365733,1770078786597,151.0,9.371e-05,2]
[404365734,1770078802448,518.75153571,9.373e-05,2]
[404365735,1770078802545,518.75153571,9.373e-05,2]
[404365736,1770078802696,518.75153571,9.373e-05,2]
[404365737,1770078802777,518.75153571,9.373e-05,2]
[404365738,1770078802862,518.75153571,9.373e-05,2]
[404365739,1770078802930,518.75153571,9.373e-05,2]
[404365740,1770078803006,518.75153571,9.373e-05,2]
[404365741,1770078803074,492.13742696,9.373e-05,2]
[404365742,1770078803108,26.61410875,9.373e-05,2]
[404365743,1770078803167,518.75153571,9.373e-05,2]
[404365744,1770078803222,518.75153571,9.373e-05,2]
[404365745,1770078803294,518.75153571,9.373e-05,2]
[404365746,1770078803349,518.75153571,9.373e-05,2]
[404365747,1770078803439,518.75153571,9.373e-05,2]
[404365748,1770078803516,518.75153571,9.373e-05,2]
[404365749,1770078803607,518.75153571,9.373e-05,2]
[404365750,1770078803762,518.75153571,9.373e-05,2]
[404365751,1770078803863,518.75153571,9.373e-05,2]
[404365752,1770078803941,304.63206986,9.373e-05,2]
[404365753,1770078803980,214.11946585,9.373e-05,2]
[404365754,1770078804072,518.75153571,9.373e-05,2]
[404365755,1770078804174,518.75153571,9.373e-05,2]
[404365756,1770078804231,518.75153571,9.373e-05,2]
[404365757,1770078804336,518.75153571,9.373e-05,2]
[404365758,1770078804405,518.75153571,9.373e-05,2]
[404365759,1770078815356,500.0,9.373e-05,2]
[404365760,1770078815720,500.0,9.373e-05,2]
[404365761,1770078816083,500.0,9.373e-05,2]
[404365762,1770078863526,500.0,9.347e-05,2]
[404365763,1770078863887,150.0,9.347e-05,2]
[404365764,1770078901492,300.0,9.373e-05,2]
[404365765,1770078901539,1200.0,9.373e-05,2]
[404365766,1770078961848,300.0,9.373e-05,2]
[404365767,1770078961895,150.0,9.373e-05,2]
[404365768,1770078967685,500.0,9.373e-05,2]
[404365769,1770078967765,500.0,9.373e-05,2]
[404365770,1770078967841,500.0,9.373e-05,2]
[404365771,1770078967920,500.0,9.373e-05,2]
[404365772,1770078968001,500.0,9.373e-05,2]
[404365773,1770078968171,500.0,9.373e-05,2]
[404365774,1770078968257,500.0,9.373e-05,2]
[404365775,1770078968336,300.0,9.373e-05,2]
[404365776,1770078968419,500.0,9.373e-05,2]
[404365777,1770078968767,500.0,9.373e-05,2]
[404365778,1770078968887,500.0,9.373e-05,2]
[404365779,1770078968999,500.0,9.373e-05,2]
[404365780,1770078969153,530.36612182,9.373e-05,2]
[404365781,1770078971386,300.0,9.373e-05,2]
[404365782,1770078984073,500.0,9.373e-05,2]
[404365783,1770079008985,269.64387818,9.373e-05,2]
[404365784,1770079009034,230.35612182,9.373e-05,2]
[404365785,1770079013070,500.0,9.373e-05,2]
[404365786,1770079013279,500.0,9.373e-05,2]
[404365787,1770079013390,317.38334024,9.373e-05,2]
[404365788,1770079013546,500.0,9.373e-05,2]
[404365789,1770079022669,500.0,9.373e-05,2]
[404365790,1770079022789,500.0,9.373e-05,2]
[404365791,1770079022865,244.59063783,9.373e-05,2]
[404365792,1770079040546,500.0,9.373e-05,2]
[404365793,1770079040645,500.0,9.373e-05,2]
[404365794,1770079040739,570.13157405,9.373e-05,2]
[404365795,1770079050493,2185.28778812,9.274e-05,2]
[404365796,1770079050518,314.71221188,9.274e-05,2]
[404365798,1770079200071,-799.580397,9.227e-05,2]
[404365799,1770079201628,1200.0,9.273e-05,2]
[404365800,1770079203698,226.0,9.227e-05,2]
[404365802,1770079276593,1974.849206,8.824e-05,2]
[404365803,1770079276615,3197.030794,8.824e-05,2]
[404365804,1770079414570,500.0,8.708e-05,2]
[404365805,1770079567616,10000.01,8.848e-05,2]
[404365806,1770079567640,2367.08,8.848e-05,2]
[404365807,1770079594532,200.0,8.685e-05,2]
[404365808,1770079619304,2856.38,8.603e-05,2]
[404365809,1770079619740,2856.38,8.626e-05,2]
[404365810,1770079619993,1720.17,8.649e-05,2]
[404365811,1770079620016,1136.21,8.649e-05,2]
[404365812,1770079620195,2856.38,8.671e-05,2]
[404365813,1770079620616,2856.38,8.694e-05,2]
[404365814,1770079620836,2856.38,8.717e-05,2]
[404365815,1770079621078,294.66,8.739e-05,2]
[404365816,1770079621100,2561.72,8.739e-05,2]
[404365817,1770079621291,2856.38,8.762e-05,2]
[404365818,1770079621501,2856.38,8.784e-05,2]
[404365819,1770079621798,1725.53,8.807e-05,2]
[404365820,1770079621824,1130.85,8.807e-05,2]
[404365821,1770079622029,2856.38,8.83e-05,2]
[404365822,1770079622252,2856.38,8.852e-05,2]
[404365823,1770079622481,2856.38,8.875e-05,2]
[404365824,1770079622960,300.02,8.898e-05,2]
[404365825,1770079622984,2556.36,8.898e-05,2]
[404365826,1770079623178,2856.38,8.92e-05,2]
[404365827,1770079623397,2856.38,8.943e-05,2]
[404365828,1770079623599,1730.89,8.965e-05,2]
[404365829,1770079623622,1125.49,8.965e-05,2]
[404365830,1770079624096,2856.38,8.988e-05,2]
[404365831,1770079624181,2856.38,9.011e-05,2]
[404365832,1770079624336,2856.38,9.033e-05,2]
[404365833,1770079637702,2086.88522229,9.067e-05,2]
[404365834,1770079638455,5507.32311936,9.067e-05,2]
[404365835,1770079639165,2405.80165835,9.067e-05,2]
[404365836,1770079639187,7309.76912807,9.067e-05,2]
[404365837,1770079648000,166.66,8.774e-05,2]
[404365838,1770079648205,166.66,9.063e-05,2]
[404365839,1770079741867,300.0,9.173e-05,2]
[404365840,1770079801482,1200.0,9.173e-05,2]
[404365841,1770079830386,1600.0,8.347e-05,2]
[404365845,1770079832076,-961.79715654,9.174e-05,2]
[404365846,1770079832088,-2305.68274974,9.174e-05,2]
[404365847,1770079832100,-390.37271931,9.174e-05,2]
[404365848,1770079832112,-955.14243117,9.174e-05,2]
[404365849,1770079832130,-2091.27211635,9.174e-05,2]
[404365850,1770079832141,-6746.12123826,9.174e-05,2]
[404365851,1770079832151,-1028.92893974,9.174e-05,2]
[404365852,1770079832184,-534.06656813,9.174e-05,2]
[404365853,1770079832196,-26455.54198076,9.174e-05,2]
[404365854,1770079832206,-226.0,9.174e-05,2]
[404365855,1770079832215,-1000.0,9.196e-05,2]
[404365856,1770079832225,-500.0,9.247e-05,2]
[404365857,1770079832240,-150.0,9.247e-05,2]
[404365859,1770079832249,-300.0,9.25e-05,2]
[404365860,1770079832258,-500.0,9.253e-05,2]
[404365861,1770079832267,-300.0,9.258e-05,2]
[404365862,1770079832276,-300.0,9.258e-05,2]
[404365863,1770079832286,-250.0,9.259e-05,2]
[404365864,1770079832295,-500.0,9.263e-05,2]
[404365865,1770079832303,-500.0,9.263e-05,2]
[404365866,1770079832313,-294.62907968,9.267e-05,2]
[404365867,1770079832322,-151.0,9.271e-05,2]
[404365868,1770079832330,-151.0,9.271e-05,2]
[404365869,1770079832339,-506.98491051,9.272e-05,2]
[404365870,1770079832348,-150.0,9.272e-05,2]
[404365872,1770079832359,-500.0,9.273e-05,2]
[404365874,1770079832368,-387.60370729,9.273e-05,2]
[404365877,1770079832377,-500.0,9.273e-05,2]
[404365880,1770079832386,-426.80392637,9.273e-05,2]
[404365882,1770079832395,-500.0,9.273e-05,2]
[404365884,1770079832404,-272.16833817,9.273e-05,2]
[404365886,1770079832413,-500.0,9.273e-05,2]
[404365888,1770079832422,-600.0,9.273e-05,2]
[404365890,1770079832431,-500.0,9.273e-05,2]
[404365892,1770079832441,-500.0,9.273e-05,2]
[404365893,1770079832450,-500.0,9.273e-05,2]
[404365894,1770079832460,-500.0,9.273e-05,2]
[404365895,1770079832469,-500.0,9.273e-05,2]
[404365896,1770079832481,-500.0,9.273e-05,2]
[404365897,1770079832491,-500.0,9.273e-05,2]
[404365898,1770079832500,-500.0,9.273e-05,2]
[404365899,1770079832511,-500.0,9.273e-05,2]
[404365900,1770079832521,-500.0,9.273e-05,2]
[404365901,1770079832531,-500.0,9.273e-05,2]
[404365902,1770079832541,-500.0,9.273e-05,2]
[404365903,1770079832551,-500.0,9.273e-05,2]
[404365904,1770079832560,-500.0,9.273e-05,2]
[404365905,1770079832570,-500.0,9.273e-05,2]
[404365906,1770079832581,-500.0,9.273e-05,2]
[404365907,1770079832590,-500.0,9.273e-05,2]
[404365908,1770079832600,-500.0,9.273e-05,2]
[404365909,1770079832615,-500.0,9.273e-05,2]
[404365910,1770079832626,-500.0,9.273e-05,2]
[404365911,1770079832637,-500.0,9.273e-05,2]
[404365912,1770079832647,-500.0,9.273e-05,2]
[404365913,1770079832655,-500.0,9.273e-05,2]
[404365914,1770079832665,-500.0,9.273e-05,2]
[404365915,1770079832674,-500.0,9.273e-05,2]
[404365916,1770079832683,-500.0,9.273e-05,2]
[404365917,1770079832693,-500.0,9.273e-05,2]
[404365918,1770079832702,-500.0,9.273e-05,2]
[404365919,1770079832711,-500.0,9.273e-05,2]
[404365920,1770079832721,-500.0,9.273e-05,2]
[404365921,1770079832729,-500.0,9.273e-05,2]
[404365922,1770079832738,-500.0,9.273e-05,2]
[404365923,1770079832748,-500.0,9.273e-05,2]
[404365924,1770079832759,-500.0,9.273e-05,2]
[404365925,1770079832768,-500.0,9.273e-05,2]
[404365926,1770079832778,-500.0,9.273e-05,2]
[404365927,1770079832787,-500.0,9.273e-05,2]
[404365928,1770079832796,-500.0,9.273e-05,2]
[404365929,1770079832806,-500.0,9.273e-05,2]
[404365930,1770079832814,-500.0,9.273e-05,2]
[404365931,1770079832823,-500.0,9.273e-05,2]
[404365932,1770079832833,-500.0,9.273e-05,2]
[404365933,1770079832842,-500.0,9.273e-05,2]
[404365934,1770079832851,-500.0,9.273e-05,2]
[404365935,1770079832860,-500.0,9.273e-05,2]
[404365936,1770079832869,-500.0,9.273e-05,2]
[404365937,1770079832878,-500.0,9.273e-05,2]
[404365938,1770079832888,-500.0,9.273e-05,2]
[404365939,1770079832897,-500.0,9.273e-05,2]
[404365940,1770079832910,-500.0,9.273e-05,2]
[404365941,1770079832920,-500.0,9.273e-05,2]
[404365942,1770079832931,-500.0,9.273e-05,2]
[404365943,1770079832940,-500.0,9.273e-05,2]
[404365944,1770079832949,-500.0,9.273e-05,2]
[404365945,1770079832958,-500.0,9.273e-05,2]
[404365946,1770079832967,-500.0,9.273e-05,2]
[404365947,1770079832976,-500.0,9.273e-05,2]
[404365948,1770079832988,-500.0,9.273e-05,2]
[404365949,1770079832998,-500.0,9.273e-05,2]
[404365950,1770079833007,-500.0,9.273e-05,2]
[404365951,1770079833017,-500.0,9.273e-05,2]
[404365952,1770079833026,-500.0,9.273e-05,2]
[404365953,1770079833036,-500.0,9.273e-05,2]
[404365954,1770079833047,-500.0,9.273e-05,2]
[404365955,1770079833056,-500.0,9.273e-05,2]
[404365956,1770079833326,-500.0,9.273e-05,2]
[404365957,1770079833337,-500.0,9.273e-05,2]
[404365958,1770079833347,-572.17953079,9.273e-05,2]
[404365959,1770079833356,-500.0,9.273e-05,2]
[404365960,1770079833366,-500.0,9.273e-05,2]
[404365961,1770079833376,-500.0,9.273e-05,2]
[404365962,1770079833386,-500.0,9.273e-05,2]
[404365963,1770079833395,-500.0,9.273e-05,2]
[404365964,1770079833404,-500.0,9.273e-05,2]
[404365965,1770079833414,-500.0,9.273e-05,2]
[404365966,1770079833424,-500.0,9.273e-05,2]
[404365967,1770079833433,-500.0,9.273e-05,2]
[404365968,1770079833442,-570.13157405,9.273e-05,2]
[404365969,1770079833451,-500.0,9.273e-05,2]
[404365970,1770079833460,-500.0,9.273e-05,2]
[404365971,1770079833469,-570.13157405,9.273e-05,2]
[404365972,1770079833479,-500.0,9.273e-05,2]
[404365973,1770079833488,-500.0,9.273e-05,2]
[404365974,1770079833497,-500.0,9.273e-05,2]
[404365975,1770079833507,-244.59063783,9.273e-05,2]
[404365976,1770079833517,-858.87539093,9.273e-05,2]
[404365977,1770079833526,-858.87539093,9.273e-05,2]
[404365978,1770079833535,-506.98491049,9.273e-05,2]
[404365979,1770079833544,-3769.65216993,9.274e-05,2]
[404365980,1770079833557,-882.31924771,9.274e-05,2]
[404365985,1770079838204,-2500.0,9.174e-05,2]
[404365986,1770079838214,-2610.81304721,9.274e-05,2]
[404365987,1770079838256,-448.03156372,9.274e-05,2]
[404365988,1770079838268,-3492289.18397143,9.274e-05,2]
[404365989,1770079838278,-237.2858,9.274e-05,2]
[404365990,1770079838287,-500.0,9.274e-05,2]
[404365991,1770079838297,-500.0,9.274e-05,2]
[404365992,1770079838307,-500.0,9.274e-05,2]
[404365993,1770079838316,-500.0,9.274e-05,2]
[404365994,1770079838325,-500.0,9.274e-05,2]
[404365995,1770079838335,-500.0,9.274e-05,2]
[404365996,1770079838344,-500.0,9.274e-05,2]
[404365997,1770079838353,-500.0,9.274e-05,2]
[404365998,1770079838363,-500.0,9.274e-05,2]
[404365999,1770079838373,-500.0,9.274e-05,2]
[404366000,1770079838382,-500.0,9.274e-05,2]
[404366001,1770079838392,-500.0,9.274e-05,2]
[404366002,1770079838401,-500.0,9.274e-05,2]
[404366003,1770079838411,-500.0,9.274e-05,2]
[404366004,1770079838421,-500.0,9.274e-05,2]
[404366005,1770079838431,-500.0,9.274e-05,2]
[404366006,1770079838441,-500.0,9.274e-05,2]
[404366007,1770079838452,-500.0,9.274e-05,2]
[404366008,1770079838462,-500.0,9.274e-05,2]
[404366009,1770079838472,-500.0,9.274e-05,2]
[404366010,1770079838481,-500.0,9.274e-05,2]
[404366011,1770079838491,-500.0,9.274e-05,2]
[404366012,1770079838501,-500.0,9.274e-05,2]
[404366013,1770079838518,-500.0,9.274e-05,2]
[404366014,1770079838527,-500.0,9.274e-05,2]
[404366015,1770079838538,-174.04924007,9.274e-05,2]
[404366016,1770079838547,-506.98491049,9.274e-05,2]
[404366017,1770079838558,-173.42596127,9.274e-05,2]
[404366019,1770079838567,-3724.9148492,9.274e-05,2]
[404366020,1770079838577,-9069.8661471,9.274e-05,2]
[404366021,1770079838587,-9999.99,9.278e-05,2]
[404366022,1770079838596,-1251.28,9.278e-05,2]
[404366023,1770079838606,-1320.38,9.278e-05,2]
[404366024,1770079838616,-299.99,9.278e-05,2]
[404366025,1770079838626,-9999.99,9.278e-05,2]
[404366026,1770079838636,-5519.56,9.295e-05,2]
[404366027,1770079838646,-150.99,9.295e-05,2]
[404366028,1770079838656,-150.99,9.295e-05,2]
[404366029,1770079838666,-9999.99,9.295e-05,2]
[404366030,1770079838677,-999.99,9.295e-05,2]
[404366031,1770079838686,-9999.99,9.295e-05,2]
[404366032,1770079838697,-9999.99,9.295e-05,2]
[404366033,1770079838707,-4999.99,9.295e-05,2]
[404366034,1770079838717,-499.99,9.295e-05,2]
[404366035,1770079838727,-6079.094,9.295e-05,2]
[404366036,1770079838737,-516.174,9.295e-05,2]
[404366037,1770079838747,-550.0,9.302e-05,2]
[404366038,1770079838756,-6286.0,9.315e-05,2]
[404366039,1770079838766,-243.4435957,9.33e-05,2]
[404366040,1770079838776,-418.0,9.349e-05,2]
[404366041,1770079838785,-166.66,9.353e-05,2]
[404366042,1770079838795,-167.0,9.359e-05,2]
[404366043,1770079838804,-1719.0,9.367e-05,2]
[404366044,1770079838813,-1036.58,9.373e-05,2]
[404366045,1770079838823,-119537.7616,9.374e-05,2]
[404366046,1770079838832,-10000.0,9.374e-05,2]
[404366047,1770079838842,-1600.0,9.391e-05,2]
[404366048,1770079838852,-281.0,9.414e-05,2]
[404366049,1770079838862,-500.0,9.547e-05,2]
[404366050,1770079838872,-33288.2505,9.574e-05,2]
[404366051,1770079838882,-267.0,9.578e-05,2]
[404366052,1770079838893,-336.0,9.597e-05,2]
[404366053,1770079838903,-484.0,9.616e-05,2]
[404366054,1770079838916,-166.66,9.642e-05,2]
[404366055,1770079838926,-1036.58,9.647e-05,2]
[404366056,1770079838936,-500.0,9.733e-05,2]
[404366057,1770079838945,-100715.52,9.767e-05,2]
[404366058,1770079838955,-500.0,9.821e-05,2]
[404366059,1770079838965,-14533.91284636,9.917e-05,2]
[404366060,1770079838975,-1036.58,9.921e-05,2]
[404366061,1770079838984,-166.66,9.932e-05,2]
[404366062,1770079838994,-486.73,0.0001,2]
[404366063,1770079839003,-500.0,0.0001,2]
[404366064,1770079839014,-151.0,0.0001,2]
[404366065,1770079839023,-151.0,0.0001,2]
[404366066,1770079839033,-151.0,0.0001,2]
[404366067,1770079839043,-151.0,0.0001,2]
[404366068,1770079839052,-151.0,0.0001,2]
[404366069,1770079839062,-151.0,0.0001,2]
[404366070,1770079839072,-151.0,0.0001,2]
[404366071,1770079839082,-151.0,0.0001,2]
[404366072,1770079839092,-151.0,0.0001,2]
[404366073,1770079839102,-151.0,0.0001,2]
[404366074,1770079839111,-500.0,0.0001,2]
[404366075,1770079839121,-151.0,0.0001,2]
[404366076,1770079839131,-500.0,0.0001,2]
[404366077,1770079839141,-151.0,0.0001,2]
[404366078,1770079839150,-500.0,0.0001,2]
[404366079,1770079839160,-151.0,0.0001,2]
[404366080,1770079839170,-500.0,0.0001,2]
[404366081,1770079839180,-151.0,0.0001,2]
[404366082,1770079839189,-500.0,0.0001,2]
[404366083,1770079839201,-500.0,0.0001,2]
[404366084,1770079839211,-151.0,0.0001,2]
[404366085,1770079839220,-500.0,0.0001,2]
[404366086,1770079839230,-151.0,0.0001,2]
[404366087,1770079839239,-500.0,0.0001,2]
[404366088,1770079839249,-151.0,0.0001,2]
[404366089,1770079839259,-500.0,0.0001,2]
[404366090,1770079839270,-151.0,0.0001,2]
[404366091,1770079839280,-500.0,0.0001,2]
[404366092,1770079839289,-151.0,0.0001,2]
[404366093,1770079839300,-500.0,0.0001,2]
[404366094,1770079839310,-151.0,0.0001,2]
[404366095,1770079839319,-151.0,0.0001,2]
[404366096,1770079839328,-151.0,0.0001,2]
[404366097,1770079839338,-151.0,0.0001,2]
[404366098,1770079839348,-150.00767302,0.0001,2]
[404366099,1770079839358,-151.0,0.0001,2]
[404366100,1770079839368,-200.0,0.0001,2]
[404366101,1770079839377,-151.0,0.0001,2]
[404366102,1770079839387,-151.0,0.0001,2]
[404366103,1770079839397,-151.0,0.0001,2]
[404366104,1770079839406,-151.0,0.0001,2]
[404366105,1770079839417,-151.0,0.0001,2]
[404366106,1770079839426,-151.0,0.0001,2]
[404366107,1770079839436,-151.0,0.0001,2]
[404366108,1770079839446,-500.0,0.0001,2]
[404366109,1770079839456,-500.0,0.0001,2]
[404366110,1770079839465,-500.0,0.0001,2]
[404366111,1770079839475,-500.0,0.0001,2]
[404366112,1770079839484,-500.0,0.0001,2]
[404366113,1770079839494,-500.0,0.0001,2]